Cogmind - Beta 16.1 @@@ ROGUE MODE // 2026.02.17 @ 14:49:59 Player: Lintence Result: Self-destructed Performance ------------- Evolutions (2) 1000 Regions Visited (3) 600 Robots Destroyed (20) 100 Value Destroyed (458) 458 Prototype IDs (1) 20 Alien Tech Used (0) 0 Bonus (0) 0 TOTAL SCORE: 2178 Bonus ------- None Cogmind --------- Core Integrity 489/550 Matter 236/300 Energy 265/265 System Corruption 0% Temperature Warning (347) Movement Walking (120) Location -8/Materials Parts ------- > --- POWER (1) -------- Improved Ion Engine > --- PROPULSION (3) --- Aluminum Leg Aluminum Leg Aluminum Leg > --- UTILITY (4) ------ Medium Storage Unit Targeting Computer Improved Targeting Computer Recoil Stabilizer > --- WEAPON (3) ------- Particle Cannon Improved Light Cannon Improved Light Cannon > --- INVENTORY (10) --- Ion Engine Improved Ion Engine Aluminum Leg Aluminum Leg Medium Laser Medium Laser Particle Cannon Heavy Assault Rifle Mini Grenade Launcher Peak State ------------ > --- POWER ------------ Improved Ion Engine > --- PROPULSION ------- Aluminum Leg Aluminum Leg Aluminum Leg > --- UTILITY ---------- Medium Storage Unit Targeting Computer Improved Targeting Computer Recoil Stabilizer > --- WEAPON ----------- Particle Cannon Improved Light Cannon Improved Light Cannon > --- INVENTORY -------- Ion Engine Improved Ion Engine Aluminum Leg Aluminum Leg Medium Laser Medium Laser Particle Cannon Heavy Assault Rifle Mini Grenade Launcher [Rating: 19] Favorites ----------- Power Ion Engine Engine Ion Engine Propulsion Aluminum Leg Leg Aluminum Leg Utility Targeting Computer Device Recoil Stabilizer Storage Small Storage Unit Processor Targeting Computer Weapon Improved Light Cannon Energy Cannon Particle Cannon Ballistic Gun Light Assault Rifle Ballistic Cannon Improved Light Cannon Build | -11 -10 -9 -8 ------- Run | Yrd Mat Mat Mat Slots Evolved 4 | . . 2 2 Power . | . . . . Propulsion 1 | . . 1 . Utility 2 | . . 1 1 Weapon 1 | . . . 1 Parts Attached 26 | 7 6 12 1 Power 5 | 1 1 3 . Engine 5 | 1 1 3 . Core . | . . . . Reactor . | . . . . Propulsion 7 | 2 2 3 . Treads . | . . . . Leg 7 | 2 2 3 . Wheel . | . . . . Hover . | . . . . Flight . | . . . . Utility 6 | 1 1 3 1 Device 1 | . . . 1 Storage 3 | 1 . 2 . Processor 2 | . 1 1 . Hackware . | . . . . Protection . | . . . . Artifact . | . . . . Weapon 8 | 3 2 3 . Energy Gun . | . . . . Energy Cannon 1 | . . 1 . Ballistic Gun 3 | 3 . . . Ballistic Cannon 4 | . 2 2 . Launcher . | . . . . Special Weapon . | . . . . Impact Weapon . | . . . . Slashing Weapon . | . . . . Piercing Weapon . | . . . . Special Melee Weapon . | . . . . Unidentified Prototypes 1 | . . 1 . Parts Lost . | . . . . Power . | . . . . Propulsion . | . . . . Utility . | . . . . Weapon . | . . . . Highest Loss Streak . | . . . . To Critical Strikes . | . . . . Average Backups 7 | 1 5 9 9 Power 1 | . 1 1 2 Propulsion 1 | . 1 2 2 Utility . | . . . . Weapon 4 | . 2 5 5 Tool/Special . | . . . . Unused Backups 15 | . 3 4 8 Power 4 | . . 2 2 Propulsion 1 | . . . 1 Utility . | . . . . Weapon 10 | . 3 2 5 Tool/Special . | . . . . Average Slot Usage (%) 95 | . 94 95 98 Engine 12 | . 14 11 9 Leg 30 | . 28 33 27 Storage 12 | . 14 11 9 Processor 13 | . 8 17 18 Energy Cannon 5 | . . 9 9 Ballistic Gun 10 | . 23 . . Ballistic Cannon 9 | . 4 12 18 Peak Build Rating 19 | 6 7 15 19 Average Rating 10 | 4 6 12 18 On Entrance 6 | . 6 7 14 Avg Prop Armor Cover (%) . | . . . . Naked Turns . | . . . . Heaviest Build 30 | 13 16 25 30 Greatest Support 30 | 20 20 30 30 Greatest Overweight (x) 3 | 3 . . . Average Overweight (x) . | . . . . Largest Inventory Capacity 10 | 8 8 10 10 Average Capacity 8 | 7 8 9 10 Most Carried 10 | 2 8 10 9 Average Carried 7 | 1 5 9 9 Final Capacity 10 | 8 8 10 10 Final Carried 10 | 2 8 10 9 Class Distribution -------------------- 87% | Mutant 12% | Gunner Dominant Class ---------------- Mutant | -10/Materials Mutant | -9/Materials Gunner | -8/Materials Resources | -11 -10 -9 -8 ----------- Run | Yrd Mat Mat Mat Matter Collected 688 | 246 226 194 22 Remotely . | . . . . Salvage Created 677 | . 264 368 45 Parts 40 | . 19 19 2 Haulers Intercepted 4 | . 1 3 . Recyclers Shooed . | . . . . Parts Field Recycled . | . . . . Retrieved Matter . | . . . . Parts Self-Destructed . | . . . . Prevented . | . . . . Parts Restored . | . . . . Kills | -11 -10 -9 -8 ------- Run | Yrd Mat Mat Mat Combat Hostiles Destroyed 15 | . 7 5 3 Guns 7 | . 7 . . Cannons 8 | . . 5 3 Classes Destroyed 5 | . 3 1 1 Hauler 4 | . 1 3 . Recycler 1 | . . 1 . Swarmer 5 | . 3 . 2 Grunt 9 | . 4 5 . Sentry 1 | . . . 1 Best Kill Streak 6 | . 3 6 2 Combat Bots Only 4 | . 3 4 2 Max Kills in Single Turn 1 | . 1 1 1 Gunslinging . | . . . . Exploded . | . . . . Melee . | . . . . Uniques/NPCs Destroyed . | . . . . Combat | -11 -10 -9 -8 -------- Run | Yrd Mat Mat Mat Hostile Shots Fired 94 | . 61 5 28 Missed 27 | . 20 1 6 Hits 67 | . 41 4 22 Projectile 67 | . 41 4 22 Critical Strikes 4 | . 1 . 3 Damage Taken 800 | . 422 44 334 Core 162 | . 89 12 61 Absorbed by Shields . | . . . . Core Remaining (%) 87 | 100 64 97 . Volleys Fired 59 | . 37 16 6 Largest 3 | . 2 2 3 Hottest 134 | . 40 101 134 Shots Fired 124 | . 74 32 18 Gun 74 | . 74 . . Cannon 50 | . . 32 18 Launcher . | . . . . Special . | . . . . Kinetic 103 | . 74 17 12 Thermal 21 | . . 15 6 Explosive . | . . . . Electromagnetic . | . . . . Robot Hit Streak 11 | . 7 6 11 Robot Miss Streak 5 | . 5 2 1 Penetration Max . | . . . . Secondary Targets 1 | . 1 . . Max Gunslinging Chain 1 | . 1 . . Shots Hit Robots 74 | . 42 18 14 Core Hits 29 | . 15 9 5 Critical Kills . | . . . . Critical Parts Destroyed . | . . . . Critical Strikes 2 | . . 1 1 Blast 2 | . . 1 1 Melee Attacks . | . . . . Impact . | . . . . Slashing . | . . . . Piercing . | . . . . Sneak Attacks . | . . . . Combat Hostiles . | . . . . Follow-up Attacks . | . . . . Damage Inflicted 1132 | . 468 374 290 Guns 468 | . 468 . . Cannons 664 | . . 374 290 Explosions . | . . . . Melee . | . . . . Ramming . | . . . . Kinetic 905 | . 468 229 208 Thermal 227 | . . 145 82 Explosive . | . . . . Electromagnetic . | . . . . Impact . | . . . . Slashing . | . . . . Piercing . | . . . . Highest Corruption 3 | . . 3 . Average Corruption 3 | . . 3 . Corruption Purged . | . . . . Corruption Blocked . | . . . . Effects 5 | . . 5 . Message Errors 1 | . . 1 . Matter Fused 1 | . . 1 . Data Loss (minor) 1 | . . 1 . Misfires 1 | . . 1 . Weapon Failures 1 | . . 1 . Overload Shots . | . . . . Overflow Damage . | . . . . Projectiles . | . . . . Explosions . | . . . . Melee . | . . . . Knockbacks 1 | . . . 1 Impact . | . . . . Kinetic 1 | . . . 1 Secondary . | . . . . Self-Inflicted Damage . | . . . . Shots . | . . . . Rammed . | . . . . Targets Rammed . | . . . . Kicked . | . . . . Crushed . | . . . . Highest Temperature 338 | . 15 181 338 Average Temperature 50 | . 8 47 106 Received Heat Transfer 378 | . 174 24 180 Siege Activations . | . . . . Martial Activations . | . . . . Shielding Activations . | . . . . Robots Disrupted . | . . . . Combat Hostiles . | . . . . Robots Corrupted . | . . . . Combat Hostiles . | . . . . Parts Fried . | . . . . Impact Corruptions . | . . . . Robots Melted . | . . . . Combat Hostiles . | . . . . Parts Melted . | . . . . Heat Transferred 407 | . . 259 148 Parts Sabotaged . | . . . . Parts Stolen . | . . . . Parts Stripped . | . . . . Power Chain Reactions . | . . . . Alert | -11 -10 -9 -8 ------- Run | Yrd Mat Mat Mat Maximum Alert Level . | . . . . Low Security (%) 100 | 100 100 100 100 Level 1 . | . . . . Level 2 . | . . . . Level 3 . | . . . . Level 4 . | . . . . Level 5 . | . . . . High Security . | . . . . Max Security . | . . . . Peak Influence 154 | . 90 119 154 Initial 45 | . . 11 45 Average 38 | . 50 25 59 Influence Increases 530 | . 183 188 159 Destroy 0b10 Robot/C 300 | . 140 100 60 Destroy 0b10 Robot/NC 25 | . 5 20 . Destroy Leader 78 | . 32 26 20 Successful Hack 39 | . 6 24 9 Disable Machine 45 | . . 15 30 Destroy Structure 28 | . . 3 25 Lose Combat Pursuer 15 | . . . 15 Influence Decreases 376 | . 156 106 114 Entered New Map 80 | . . 16 64 Time Decay 296 | . 156 90 50 Squads Dispatched 7 | . 1 2 4 Investigation 1 | . . 1 . Extermination . | . . . . Reinforcement 3 | . 1 1 1 Assault 2 | . . . 2 Garrison 1 | . . . 1 Intercept . | . . . . Searches Triggered . | . . . . Construction Impeded . | . . . . Haulers Reinforced . | . . . . Active Scanning Responses . | . . . . Cargo Convoy Interrupts . | . . . . Stealth | -11 -10 -9 -8 --------- Run | Yrd Mat Mat Mat Distress Signals 2 | . 2 . . Communications Jammed . | . . . . Distress Signals . | . . . . Times Spotted 27 | . 14 7 6 Peak Tracking Total 4 | . 4 3 4 Tactical Retreats 1 | . . . 1 Traps | -11 -10 -9 -8 ------- Run | Yrd Mat Mat Mat Traps Triggered 1 | . . 1 . Indirectly . | . . . . Trap Hack Attempts . | . . . . Triggered . | . . . . Disarmed . | . . . . Reprogrammed . | . . . . Reused . | . . . . Traps Extracted . | . . . . Installed . | . . . . Triggered . | . . . . Machines | -11 -10 -9 -8 ---------- Run | Yrd Mat Mat Mat Machines Disabled 3 | . . 1 2 Max in Single Turn 2 | . . 1 2 Garrison Access 1 | . . . 1 Machines Repaired . | . . . . Machines Dismantled . | . . . . Machines Sabotaged . | . . . . Overloaded Fab Kills . | . . . . Hacking | -11 -10 -9 -8 --------- Run | Yrd Mat Mat Mat Machines Accessed 4 | . 1 2 1 Terminals 3 | . 1 1 1 Fabricators . | . . . . Repair Stations . | . . . . Recycling Units . | . . . . Scanalyzers 1 | . . 1 . Garrison Access . | . . . . Total Hacks 12 | . 2 5 5 Successful 7 | . 2 2 3 Failed 5 | . . 3 2 Catastrophic 1 | . . 1 . Database Lockouts . | . . . . Manual 5 | . 2 1 2 Terminals 8 | . 2 1 5 Fabricators . | . . . . Repair Stations . | . . . . Recycling Units . | . . . . Scanalyzers 4 | . . 4 . Garrison Access . | . . . . Terminal Hacks 4 | . 2 . 2 Locate Traps 1 | . 1 . . Dispatch Records 1 | . . . 1 Zone Layout 2 | . 1 . 1 Fabricator Hacks . | . . . . Repair Station Hacks . | . . . . Recycling Unit Hacks . | . . . . Scanalyzer 2 | . . 2 . Retrieve Study 2 | . . 2 . Garrison Access Hacks . | . . . . Unauthorized Hacks 1 | . . . 1 Terminals 1 | . . . 1 Botnet 1 | . . . 1 Fabricators . | . . . . Repair Stations . | . . . . Recycling Units . | . . . . Scanalyzers . | . . . . Garrison Access . | . . . . Data Cores Recovered . | . . . . Used . | . . . . Hacking Detections 3 | . . 2 1 Full Trace Events . | . . . . Feedback Events . | . . . . Feedback Blocked . | . . . . Robot Schematics Acquired . | . . . . Robots Built . | . . . . Authchips . | . . . . Time . | . . . . Total Robot Build Rating . | . . . . Part Schematics Acquired . | . . . . Parts Built . | . . . . Authchips . | . . . . Time . | . . . . Total Part Build Rating . | . . . . Part Studies Acquired 2 | . . 2 . Parts Repaired . | . . . . Time . | . . . . Parts Recycled . | . . . . Recycled Matter . | . . . . Retrieved Matter . | . . . . Retrieved Components . | . . . . Parts Scanalyzed . | . . . . Part Schematics Acquired . | . . . . Parts Damaged . | . . . . Bothacking | -11 -10 -9 -8 ------------ Run | Yrd Mat Mat Mat Used RIF Installer . | . . . . Robots Hacked . | . . . . Non-combat . | . . . . Combat . | . . . . Robot Hacks Applied . | . . . . Relay Couplers Released 1 | . . . 1 Machine Destruction 1 | . . . 1 Fabnet Peak Effective % . | . . . . Robots Rewired . | . . . . Allies Hacked . | . . . . Hacks Repelled . | . . . . Allies | -11 -10 -9 -8 -------- Run | Yrd Mat Mat Mat Total Allies . | . . . . Largest Group . | . . . . Highest-Rated Group . | . . . . Highest-Rated Ally . | . . . . Total Orders . | . . . . Ally Attacks . | . . . . Total Damage . | . . . . Kills . | . . . . Allies Corrupted . | . . . . Allies Melted . | . . . . Intel | -11 -10 -9 -8 ------- Run | Yrd Mat Mat Mat Active Infowar (turns) . | . . . . Robot Analysis Total . | . . . . Derelict Logs Recovered . | . . . . Drone Launches . | . . . . Drone Recoveries . | . . . . Exploration | -11 -10 -9 -8 ------------- Run | Yrd Mat Mat Mat Turns Passed 858 | 44 346 362 106 Spaces Moved 503 | 26 182 232 63 Core 7 | 7 . . . Treads . | . . . . Legs 496 | 19 182 232 63 Wheels . | . . . . Hover . | . . . . Flight . | . . . . Fastest Speed 50 | 50 120 120 120 Average Speed 120 | 127 120 120 120 Slowest Speed 200 | 200 120 120 120 Overloaded Moves . | . . . . Propulsion Burnouts . | . . . . Robots Hopped . | . . . . Potential Cave-ins . | . . . . Cave-ins Triggered . | . . . . Exploration Rate (%) 22 | 3 46 28 12 Regions Visited 3 Branch Regions . Pre-discovered Areas . | . . . . Known Exits Taken . | . . . . Unknown Exits Taken 3 | 1 1 1 . Scrap Searched . | . . . . Spaces Dug . | . . . . Terrain Destroyed 26 | . . 1 25 Melee . | . . . . Projectile 1 | . . 1 . AOE 25 | . . . 25 Terrain Rammed . | . . . . Walls Destroyed . | . . . . Machines Disabled . | . . . . Actions | -11 -10 -9 -8 --------- Run | Yrd Mat Mat Mat Total 649 | 33 245 292 79 Wait 18 | . 6 4 8 Move 500 | 25 181 231 63 Hop . | . . . . Pick Up 20 | 1 8 11 . Fast Attach 14 | 6 3 4 1 Attach 2 | . . 1 1 Detach 1 | . 1 . . Swap 12 | 1 3 8 . Drop 23 | . 6 17 . Fire 59 | . 37 16 6 Melee . | . . . . Ram . | . . . . Kick . | . . . . Crush . | . . . . Escape Stasis . | . . . . Rewire . | . . . . Trap . | . . . . Miscellaneous . | . . . . Route ------- -11/Scrapyard -10/Materials (discovered 2 exits: *Mat x2) -9/Materials -8/Materials History --------- Turn | Location | Event 16 | -11/Scrapyard | Discovered new exit (range 15) 45 | -11/Scrapyard | Entered Materials 121 | -10/Materials | Discovered new exit (range 16) 226 | -10/Materials | Discovered new exit (range 3) 318 | -10/Materials | Build established: Mutant 391 | -10/Materials | Entered another Materials area 391 | -9/Materials | Evolved 2 slots: Propulsion x1, Utility x1 706 | -9/Materials | Discovered new exit (range 16) 753 | -9/Materials | Entered another Materials area 753 | -8/Materials | Evolved 2 slots: Utility x1, Weapon x1 768 | -8/Materials | Garrison activated, responded to threat 859 | -8/Materials | Self-destructed Last Messages --------------- reinforcements to Terminal M001. 00825_ S-10 Pest destroyed. 00831_ Acquired 9 matter. 00832_ S-10 Pest destroyed. 00835_ U-05 Engineer builds a Door. 00836_ Fusion Modulator explodes. 00836_ Acquired 11 matter. 00840_ Acquired 2 matter. 00840_ U-05 Engineer lays Concrete. 00844_ Critical hit (Burn: +37). 00845_ U-05 Engineer lays Concrete. 00853_ Y-45 Defender destroyed. 00854_ U-05 Engineer lays Concrete. 00856_ G-47 Trooper knocked back. 00856_ G-47 Trooper Lgt. Nuclear Core blasted off. 00856_ U-05 Engineer lays Concrete. 00856_ Critical hit (Burn: +37). 00857_ U-05 Engineer builds a Wall. 00857_ U-05 Engineer lays Concrete. Map ----- +----------------------------------------------------+ | ?????????????????????????????????????????????????? | | ?????????????????????????????????????????????????? | | ?????????????????????????????????????????????????? | | ?????????????????????????????????????????????????? | | ?????????????????????????????????????????????????? | | ?????????????????????????????????????????????????? | | ?????????????????????????????????????????????????? | | ?????????????????????????????????????????????????? | | ?????????????????????????????????????????????????? | | ?????????????????????????????????????????????????? | | ?????????????????????????????????????????????????? | | ?????????????????????????????????????????????????? | | ?????????????????????????????????????????????????? | | ?????????????????????????????????????????????????? | | ?????????????????????????????????????????????????? | | ????????????????#??????????+?????????????????????? | | ???????????????## ????????? ?? #?????? | | ???????????????#a ???????? ??###########+######?? | | ?????????????### ???#### ???????# #?? | | ?????????????? ?? #??????# " """ """ #?? | | ???????????????# % ### ? #??????# T """ """ #?? | | ???????????????# u %; # ? #??????# " """ """ #?? | | ???????????????##;%;;;;;;## #??????# #?? | | ??????????????##; # #??????# #?? | | ??????????????#%; # ###????# #?? | | ??????????????#;; @# ##################?? | | ??????????# g + = + #?????????? | | ?????????? g ; u # ##= """ #?????????? | | ??????????? Y %; # ## """ ##########? | | ??????????? ; # ## """ # #? | | ???????????? ;] # ## # """ #? | | ????????????######;;;;;#### ## """ # "T" #? | | ????????????????# = ???# ## """ # #? | | ????????????????# ???# ## """ # #? | | ????????????????# ????# ## # """ #? | | ????????????????# ????+ ## # = """ #? | | ????????????????# ?????# ## # """ #? | | ????????????????# " "?????# ######+### #? | | ????????????????? "R??????# #### ###+######? | | ??????????????????????????# #??? | | ??????????????????????????# " #??? | | ??????????????????????????# #??? | | ??????????????????????????######## ###+####### | | ?????????????????????????????????####### # | | ???????????????????????????????????????# # | | ???????????????????????????????????????# """ """ # | | ???????????????????????????????????????# """ """ # | | ???????????????????????????????????????# """ """ # | | ???????????????????????????????????????# """ """ # | | ???????????????????????????????????????# """ """ # | +----------------------------------------------------+ Best States ------------- Heat Dissipation 31 Energy Generation 12 Energy Capacity 265 Matter Stores 300 Matter Capacity 300 Sight Range 16 Terrain Scan Density 10 Evasion (%) 55 Targeting Accuracy 11 Recoil Reduction 4 Item Schematics ----------------- None Robot Schematics ------------------ None Fabricated ------------ Nothing Repaired ---------- Nothing Studied --------- Imp. Light Cannon | -9/Materials | Hacked Particle Cannon | -9/Materials | Hacked Alien Tech Used ----------------- None Achievements -------------- None Challenges ------------ None Game ------ Seed ChromaticPowerCleaver Manual? 0 Play Time 00:11:33 Cumulative 89.6 hours Start 2026.02.17 @ 14:39:59 End 2026.02.17 @ 14:49:59 Sessions 1 Manual Loads 0 Difficulty Rogue Special Mode None Game No. 181 Rogue 181 Adventurer 0 Explorer 0 Win Type - Total 1 Types 1/0/0/0/0/0/0/0/0/0 Lore% 26 Gallery% 35 Achievement% 26 Wizard Run 0 Options --------- Layout 1 ASCII 0 Keyboard 0 Movement Mouse Keybinds 0 Fullscreen 2 Font 20/X11 Map View 50x35 Zoom Use 0% Tactical HUD 1 Map Filters NONE Filters NONE Steam 1 RUN: 80549b56-b9a6-4e3e-b25b-2278a250c060